bitfinex-derivatives/quotes_ETHF0:USTF0_20250730
["timestamp","ask_amount","ask_price","bid_price","bid_amount"]
[1753880266995,0.5295,3777.3,3777.2,0.5295]
[1753880267297,0.5295,3777.3,3777.2,6.215]
[1753880267595,62.4148,3777.5,3776.9,1.18149929]
[1753880267596,44.0078,3777.5,3777.4,4.8621]
[1753880267788,44.0078,3777.5,3777.4,6.215]
[1753880267992,40.8,3777.5,3777.4,6.215]
[1753880269000,0.52945,3777.6,3777.4,2.5142]
[1753880269199,2.64755,3777.6,3777.5,6.215]
[1753880269501,44.34985,3777.6,3777.5,6.215]
[1753880270595,45.10036173,3777.6,3777.5,6.215]
[1753880270797,0.75051173,3777.6,3777.5,6.215]
[1753880270998,3.73721,3777.9,3777.5,3.7008]
[1753880271200,4.31051,3777.9,3777.8,4.8621]
[1753880271395,5.76230298,3777.9,3777.8,6.215]
[1753880271598,5.06120298,3777.9,3777.8,6.215]
[1753880271795,4.53179298,3777.9,3777.8,6.215]
[1753880271995,3.95849298,3777.9,3777.8,6.215]
[1753880272298,4.53179298,3777.9,3777.8,6.215]
[1753880272792,0.75069298,3777.9,3777.8,6.215]
[1753880273196,19.35032672,3778.5,3778.4,2.5142]
[1753880273197,1.47765672,3778.5,3778.4,2.5142]
[1753880273499,1.80373,3778.5,3778.4,6.215]
[1753880273689,3.58593,3778.5,3778.4,6.215]
[1753880274700,4.33643,3778.5,3778.4,6.215]
[1753880275192,0.52933,3778.5,3778.4,6.215]
[1753880275392,1.80373,3778.5,3778.4,6.215]
[1753880275595,5.23873,3778.5,3778.4,6.215]
[1753880276893,5.23873,3778.5,3778.4,4.8621]
[1753880277600,4.7094,3778.5,3778.4,6.2117]
[1753880277795,3.0566,3778.5,3778.4,6.2117]
[1753880278096,4.15612672,3778.7,3778.6,6.1971]
[1753880278300,4.5042,3778.7,3778.6,6.1971]
[1753880278603,18.92529,3778.8,3778.6,6.72639]
[1753880278795,19.51909,3778.8,3778.7,4.3587]
[1753880278994,19.6924,3778.8,3778.7,6.1971]
[1753880279190,21.545,3778.8,3778.7,6.1971]
[1753880279391,23.2244,3778.8,3778.7,6.1971]
[1753880280394,40.8,3779.0,3778.9,6.1971]
[1753880280600,5.35766,3778.9,3778.8,0.9106]
[1753880280795,1.8526,3778.4,3778.3,3.27834]
[1753880280996,1.4377,3778.2,3778.1,3.2078]
[1753880281299,2.4464,3777.9,3777.8,4.83211]
[1753880281497,4.8284,3777.9,3777.8,5.81591]
[1753880281695,0.52945,3777.6,3777.5,0.52945]
[1753880282005,5.35785,3777.6,3777.5,4.8475]
[1753880282201,5.35785,3777.6,3777.5,6.1971]
[1753880282400,4.8284,3777.6,3777.5,6.1971]
[1753880285109,3.2078,3778.0,3777.9,6.7265]
[1753880285110,5.6542,3778.0,3777.9,6.7265]
[1753880285405,8.0362,3778.0,3777.9,6.1971]
[1753880285803,8.0362,3778.0,3777.9,4.8475]
[1753880286002,48.8362,3778.0,3777.9,1.8384]
[1753880286209,2.4464,3777.8,3777.7,2.96902]
[1753880286505,3.00316,3777.5,3777.4,4.24547]
[1753880286699,4.8284,3777.5,3777.4,6.72657]
[1753880287202,4.8284,3777.2,3777.1,3.2078]
[1753880287405,4.8284,3777.2,3777.0,0.52952]
[1753880287406,4.8284,3777.1,3777.0,6.72662]
[1753880291909,4.8284,3777.1,3777.0,6.1971]
[1753880293510,2.97593,3777.0,3776.9,0.52954]
[1753880293700,4.8284,3777.0,3776.9,0.52954]
[1753880293904,4.8284,3777.0,3776.9,6.72664]
[1753880294500,3.2078,3777.2,3776.4,4.53183]
[1753880294501,5.35794,3776.9,3776.8,3.9369]
[1753880294806,5.35794,3776.9,3776.8,3.3357]
[1753880295008,5.35794,3776.9,3776.8,4.8475]
[1753880295204,5.35794,3776.9,3776.8,6.1971]
[1753880295806,4.53157,3777.2,3776.4,3.2078]
[1753880295807,2.4464,3776.6,3776.5,3.87979]
[1753880296002,4.8302,3776.6,3776.5,5.22939]
[1753880296205,45.6302,3776.6,3776.5,5.22939]
[1753880296406,45.6302,3776.6,3776.5,6.72669]
[1753880298504,40.8,3776.6,3776.5,6.72669]
[1753880299109,40.8,3776.6,3776.5,5.37709]
[1753880299110,42.4803,3776.6,3776.5,5.37709]
[1753880299409,43.1838,3776.6,3776.5,6.1971]
[1753880299602,43.1838,3776.6,3776.5,4.8475]
[1753880301411,43.1838,3776.6,3776.5,6.1971]
[1753880301812,43.1838,3776.6,3776.5,3.3502]
[1753880302007,4.8302,3776.2,3776.1,6.1971]
[1753880302207,3.90328,3776.0,3775.9,4.39337]
[1753880302408,2.88528,3776.0,3775.9,4.8475]
[1753880302708,3.58878,3776.0,3775.9,6.1971]
[1753880303108,2.83568,3776.0,3775.9,6.1971]
[1753880304310,3.2078,3776.4,3776.1,4.3587]
[1753880304515,41.3296,3776.6,3776.5,6.7267]
[1753880304810,42.7862,3776.6,3776.5,0.8546]
[1753880305015,4.8302,3776.2,3776.1,6.1971]
[1753880305604,4.8302,3776.2,3776.1,5.2133]
[1753880305916,5.35985,3776.2,3776.1,6.7802302]
[1753880307712,0.52964,3776.3,3776.2,0.52964]
[1753880307904,0.6183,3776.3,3776.2,6.80054]
[1753880308111,3.2078,3776.4,3776.2,6.80054]
[1753880308313,0.6183,3776.5,3776.4,3.91851]
[1753880308506,0.6183,3776.5,3776.4,7.3836402]
[1753880309111,40.8,3776.6,3776.4,7.3836402]
[1753880309316,40.8,3776.6,3776.5,6.2709]
[1753880309819,1.14788,3776.7,3776.6,6.80049]
[1753880310018,0.6183,3776.7,3776.6,6.80049]
[1753880310219,3.2078,3776.8,3776.6,6.80049]
[1753880310408,3.8261,3777.2,3777.1,6.80041]
[1753880310614,3.8261,3777.6,3777.5,6.80035]
[1753880310913,41.32944,3777.7,3777.5,3.6288802]
[1753880311114,40.8,3777.7,3777.6,4.7482]
[1753880311417,22.3389,3778.0,3777.5,1.1125802]
[1753880311418,3.8261,3778.0,3777.9,6.2709]
[1753880311609,7.0994,3778.0,3777.9,6.2709]
[1753880311813,2.4351,3777.8,3777.7,3.04572]
[1753880312017,3.8916,3777.8,3777.7,6.80032]
[1753880313425,3.8916,3777.8,3777.7,6.2709]
[1753880314023,3.1385,3777.8,3777.7,6.2709]
[1753880314321,3.66792,3777.8,3777.7,6.2709]
[1753880316922,3.66792,3777.8,3777.6,1.1125602]
[1753880316923,4.3555,3778.0,3777.9,2.5163]
[1753880317135,4.3555,3778.0,3777.9,6.8540302]
[1753880317427,6.8757,3778.0,3777.9,7.3834302]
[1753880317820,3.2078,3778.0,3777.9,7.3834302]
[1753880318823,0.52933,3778.5,3778.3,0.52933]
[1753880319019,1.85103,3778.5,3778.4,6.2709]
[1753880319221,46.12983,3778.5,3778.4,2.534]
[1753880319426,3.87335,3778.3,3778.2,3.8756]
[1753880319616,5.32985,3778.3,3778.2,6.2709]
[1753880319823,5.32985,3778.3,3778.2,6.8540302]
[1753880320724,5.32985,3778.3,3778.2,6.2709]
[1753880321028,5.32985,3778.3,3778.2,6.8540302]
[1753880321618,0.52934,3778.4,3778.3,6.80025]
[1753880321822,1.14764,3778.4,3778.3,6.2709]
[1753880322025,4.57674,3778.4,3778.3,6.2709]
[1753880322221,5.32984,3778.4,3778.3,6.2709]
[1753880323118,5.32984,3778.4,3778.3,4.039]
[1753880323329,5.32988,3778.1,3778.0,6.2709]
[1753880323729,5.32988,3778.1,3778.0,6.8540302]
[1753880324629,3.66788,3778.1,3778.0,6.8540302]
[1753880325329,5.32988,3778.1,3778.0,6.8540302]
[1753880326427,40.8,3778.5,3778.3,0.52934]
[1753880326631,0.52931,3778.6,3778.4,6.80022]
[1753880326828,0.52931,3778.6,3778.5,3.0994302]
[1753880327030,1.14761,3778.6,3778.5,6.8540302]
[1753880327230,41.94761,3778.6,3778.5,6.8540302]
[1753880327626,3.2078,3778.7,3778.6,5.3833]
[1753880327832,3.8261,3778.7,3778.6,6.2709]
[1753880328032,4.5295,3778.7,3778.6,6.2709]
[1753880328925,5.3797,3778.7,3778.6,6.2709]
[1753880329125,6.3463,3778.7,3778.6,6.2709]
[1753880329326,7.0994,3778.7,3778.6,6.2709]
[1753880330033,8.0083,3778.7,3778.6,6.2709]
[1753880335526,3.2078,3778.7,3778.6,6.2709]
[1753880336236,3.8261,3778.7,3778.6,6.2709]
[1753880336433,3.2078,3778.7,3778.6,6.2709]
[1753880337340,8.44899,3778.7,3778.6,6.2709]
[1753880337838,6.84129,3778.7,3778.6,6.8540302]
[1753880338838,6.84129,3778.7,3778.6,6.2709]
[1753880339038,6.84129,3778.7,3778.6,6.8540302]
[1753880339340,7.58929,3778.7,3778.6,6.8540302]
[1753880339534,8.44899,3778.7,3778.6,6.8540302]
[1753880339734,6.312,3778.7,3778.6,6.8540302]
[1753880340638,3.7786,3778.7,3778.6,6.8540302]
[1753880341541,7.9197,3778.7,3778.6,6.8540302]
[1753880341939,3.2078,3778.7,3778.2,1.382]
[1753880342137,2.4054,3778.5,3778.4,18.348]
[1753880342339,5.24123,3778.5,3778.4,0.52932]
[1753880342645,5.24123,3778.5,3778.4,6.67742]
[1753880343445,0.5708,3778.5,3778.4,6.67742]
[1753880344545,5.0067,3778.7,3778.6,6.67741]
[1753880344739,5.0067,3778.7,3778.6,7.2605402]
[1753880345043,3.2078,3778.7,3778.6,7.2605402]
[1753880345734,3.7786,3778.7,3778.6,7.2605402]
[1753880345938,7.9197,3778.7,3778.6,6.7312302]
[1753880347547,5.24121,3778.6,3778.5,20.6744]
[1753880348045,5.24121,3778.6,3778.5,23.1091]
[1753880348245,5.24121,3778.6,3778.5,24.4911]
[1753880349746,3.1042,3778.6,3778.5,24.4911]
[1753880350142,4.7119,3778.6,3778.5,6.1481]
[1753880352439,4.7119,3778.6,3778.5,24.4891]
[1753880352639,3.2078,3778.7,3778.3,0.52934]
[1753880352844,4.0131,3778.5,3778.4,21.2535302]
[1753880353050,4.7119,3778.5,3778.4,21.2535302]
[1753880353244,4.7119,3778.5,3778.4,25.0702302]
[1753880353439,3.2611,3778.5,3778.2,0.52936]
[1753880353645,2.4054,3778.4,3778.3,19.7928]
[1753880354040,3.79443,3778.4,3778.3,24.4861]
[1753880354246,5.24123,3778.4,3778.3,24.4861]
[1753880354444,4.7119,3778.0,3777.9,7.0245]
[1753880354747,4.7119,3778.0,3777.9,6.1481]
[1753880357049,3.1042,3778.0,3777.9,4.7661]
[1753880357250,4.7119,3778.0,3777.9,4.7661]
[1753880357950,5.2413,3777.9,3777.8,2.0379302]
[1753880358248,2.93483,3777.7,3777.6,23.6075]
[1753880358448,3.2651,3777.7,3777.6,21.30015]
[1753880358646,4.7119,3777.7,3777.6,22.68215]
[1753880359047,4.7119,3777.7,3777.6,25.01355]
[1753880359447,0.52942,3777.9,3777.8,0.9459]
[1753880359751,1.10022,3777.9,3777.8,6.7312302]
[1753880360152,0.5708,3777.9,3777.8,7.2606402]
[1753880361454,1.2696,3777.9,3777.8,7.2606402]
[1753880361653,3.1042,3777.9,3777.8,7.2606402]
[1753880361851,4.7157,3777.9,3777.8,7.2606402]
[1753880363449,3.856,3777.9,3777.8,7.2606402]
[1753880363654,40.8,3778.2,3778.1,6.1481]
[1753880363850,3.50879,3778.7,3778.6,1.5103]
[1753880364051,5.24849,3778.7,3778.6,6.7312302]
[1753880364352,41.3708,3778.7,3778.6,6.7312302]
[1753880364556,3.7786,3778.8,3778.7,2.96399]
[1753880364752,3.7786,3778.8,3778.7,6.67739]
[1753880365255,4.4809,3778.8,3778.7,6.67739]
[1753880366152,44.7596,3778.8,3778.3,0.8766]
[1753880366455,5.24858,3778.1,3778.0,3.7474]
[1753880366655,5.24858,3778.1,3778.0,2.3654]
[1753880366856,2.9348,3777.9,3777.8,22.2205]
[1753880367149,5.2486,3777.9,3777.8,24.4791]
[1753880367355,5.2486,3777.9,3777.8,6.1481]
[1753880370155,2.9348,3777.9,3777.8,4.8849]
[1753880370356,0.5294,3777.9,3777.8,6.164]
[1753880370557,1.1094,3777.9,3777.8,6.164]
[1753880371059,5.3052,3777.9,3777.8,6.164]
[1753880372260,5.30525,3777.6,3777.5,6.7471302]
[1753880373062,5.30525,3777.6,3777.5,6.164]
[1753880373261,1.81155,3777.6,3777.5,6.7471302]
[1753880373461,5.30525,3777.6,3777.5,6.7471302]
[1753880374865,4.7758,3777.6,3777.5,6.7471302]
[1753880375364,3.15,3777.6,3777.5,6.7471302]
[1753880375572,0.52944,3777.7,3777.6,2.98775]
[1753880375761,1.10944,3777.7,3777.6,6.69345]
[1753880376062,5.30524,3777.7,3777.6,6.164]
[1753880379061,5.30524,3777.7,3777.6,4.0002]
[1753880379571,5.30524,3777.7,3777.6,6.164]
[1753880379764,5.30524,3777.7,3777.6,4.8849]
[1753880381070,5.30524,3777.7,3777.6,6.164]
[1753880381971,3.67944,3777.7,3777.6,6.164]
[1753880382269,0.52944,3777.7,3777.6,6.164]
[1753880382663,0.52948,3777.5,3777.4,5.80876]
[1753880382970,0.52948,3777.5,3777.4,7.2765902]
[1753880386273,0.52948,3777.5,3777.4,6.7471302]
[1753880386274,1.10948,3777.5,3777.4,6.7471302]
[1753880386478,4.43108,3777.5,3777.4,6.7471302]
[1753880386674,0.52952,3777.1,3777.0,4.6947]
[1753880386874,2.02026,3776.8,3776.7,2.3716]
[1753880387077,4.7758,3776.7,3776.6,3.27271169]
[1753880387374,5.30541,3776.4,3776.3,9.43671169]
[1753880387573,1.10964,3776.2,3776.1,2.4583]
[1753880387763,2.97754,3776.2,3776.0,3.27271169]
[1753880387964,2.4479,3775.9,3775.8,3.46869405]
[1753880388168,5.6557,3775.9,3775.8,3.46869405]
[1753880388374,7.9836,3775.9,3775.8,0.19598236]
[1753880388676,54.07929856,3775.9,3775.8,0.19598236]
[1753880391471,4.7758,3775.3,3775.2,6.164]
[1753880391868,3.2078,3775.4,3775.2,6.69378]
[1753880392070,3.2078,3775.4,3775.3,6.164]
[1753880392470,3.7878,3775.4,3775.3,6.164]
[1753880392676,4.4899,3775.4,3775.3,6.164]
[1753880394080,6.3578,3775.4,3775.3,6.164]
[1753880394277,7.1094,3775.4,3775.3,6.164]
[1753880394575,1.2821,3775.0,3774.9,6.69382]
[1753880395780,0.58,3775.0,3774.9,6.69382]
[1753880396177,1.2821,3775.0,3774.9,6.69382]
[1753880396381,0.58,3775.0,3774.9,6.69382]
[1753880398088,1.2825,3775.0,3774.9,6.69382]
[1753880398381,2.25,3775.0,3774.9,6.69382]
[1753880398879,1.2825,3775.0,3774.9,6.69382]
[1753880399481,5.38851,3775.0,3774.9,4.6676]
[1753880399676,5.38851,3775.0,3774.9,6.1582]
[1753880399976,4.8587,3775.0,3774.9,6.1582]
[1753880400176,3.9239,3775.0,3774.9,6.1582]
[1753880400377,4.8587,3775.0,3774.9,6.1582]
[1753880400782,4.8587,3774.7,3774.6,6.229]
[1753880401083,5.38859,3774.4,3774.3,4.8493]
[1753880401284,5.38859,3774.4,3774.2,0.01854673]
[1753880401578,5.38859,3774.4,3774.2,3.01426673]
[1753880401579,4.8587,3774.3,3774.2,3.01426673]
[1753880401776,1.3105,3774.6,3774.5,2.4658]
[1753880402081,44.32718,3774.6,3774.5,6.229]
[1753880402273,40.8,3774.6,3774.5,6.229]
[1753880402580,41.5025,3774.6,3774.5,6.229]
[1753880402880,43.1893,3774.6,3774.5,6.229]
[1753880403073,43.1893,3774.6,3774.5,4.8493]
[1753880403676,41.5025,3774.6,3774.5,4.8493]
[1753880403876,41.5025,3774.6,3774.5,6.229]
[1753880403877,40.8,3774.6,3774.5,6.229]
[1753880404682,41.5025,3774.6,3774.5,6.229]
[1753880405278,3.2078,3775.0,3774.9,2.4658]
[1753880405485,19.0215,3775.3,3774.9,3.64847476]
[1753880405696,2.03168,3775.2,3775.1,2.4658]
[1753880405895,2.03168,3775.2,3775.1,6.229]
[1753880405896,44.50168,3775.2,3775.1,6.229]
[1753880406103,40.8,3775.2,3775.1,6.229]
[1753880406302,4.34555,3775.4,3775.3,2.4658]
[1753880406511,4.34555,3775.4,3775.3,6.229]
[1753880406803,44.0078,3775.4,3775.3,7.41167476]
[1753880407008,44.53755,3775.4,3775.3,7.41167476]
[1753880407209,44.53755,3775.4,3775.3,6.229]
[1753880407504,0.52973,3775.6,3775.5,1.5836]
[1753880407705,19.0205,3775.8,3775.3,3.7632]
[1753880407706,1.3105,3775.8,3775.7,2.4658]
[1753880407907,22.05549,3775.9,3775.8,6.229]
[1753880408110,3.2078,3775.9,3775.8,6.229]
[1753880408910,0.52968,3776.0,3775.9,6.229]
[1753880409108,0.52966,3776.1,3775.9,6.229]
[1753880409408,0.52966,3776.1,3776.0,6.229]
[1753880409607,1.13766,3776.1,3776.0,6.229]
[1753880410204,3.70156,3776.1,3776.0,6.229]
[1753880411213,5.38836,3776.1,3776.0,6.229]
[1753880412511,34.949,3777.0,3776.5,1.4489]
[1753880412717,0.52958,3776.7,3776.6,6.229]
[1753880413212,1.13758,3776.7,3776.6,6.229]
[1753880413402,1.84008,3776.7,3776.6,6.229]
[1753880413910,5.38828,3776.7,3776.6,6.229]
[1753880415202,5.38833,3776.3,3776.2,6.229]
[1753880416208,3.70158,3775.9,3775.8,4.7384]
[1753880416408,3.9239,3775.7,3775.6,7.9462]
[1753880416614,1.5755,3775.7,3775.6,7.9462]
[1753880416805,0.5297,3775.8,3775.6,9.4368]
[1753880417009,0.52969,3775.9,3775.8,5.6623]
[1753880417213,0.52967,3776.0,3775.9,0.52968]
[1753880417414,0.52967,3776.0,3775.9,6.75868]
[1753880417616,1.13767,3776.0,3775.9,6.229]
[1753880418310,1.84017,3776.0,3775.9,6.229]
[1753880418615,5.38837,3776.0,3775.9,6.229]
[1753880419612,5.38837,3776.0,3775.6,3.2078]
[1753880419613,0.52971,3775.7,3775.6,5.4804]
[1753880419821,5.38841,3775.7,3775.6,6.229]
[1753880420012,0.5297,3775.8,3775.7,6.229]
[1753880420319,40.8,3776.2,3775.7,3.64847476]
[1753880420516,0.52967,3776.0,3775.9,1.9464]
[1753880420707,1.5019,3775.3,3775.2,3.7745]
[1753880421015,0.608,3775.3,3775.2,5.6736]
[1753880421215,0.608,3775.3,3775.2,7.1642]
[1753880421416,0.608,3775.3,3775.2,9.4368]
[1753880421615,1.13777,3775.3,3775.2,9.4368]
[1753880421814,3.70257,3775.3,3775.2,6.229]
[1753880422014,5.39047,3775.3,3775.2,6.229]
[1753880422215,0.52982,3774.9,3774.8,3.2078]
[1753880422408,3.70254,3775.5,3775.4,2.4658]
[1753880422613,3.70254,3775.5,3775.4,6.229]
[1753880422908,5.39044,3775.5,3775.4,6.229]
[1753880424015,0.52973,3775.6,3775.4,6.229]
[1753880424216,3.70253,3775.6,3775.5,6.229]
[1753880424419,5.39043,3775.6,3775.5,6.229]
[1753880427224,2.02772,3775.6,3775.0,3.6614]
[1753880427413,0.6129,3775.2,3775.1,4.41859]
[1753880427618,0.6129,3775.5,3775.4,6.76345]
[1753880428725,0.6129,3775.5,3775.4,6.2337]
[1753880429423,1.6385,3775.5,3775.4,6.2337]
[1753880429825,44.8573,3775.9,3775.4,6.2337]
[1753880429826,3.73749,3775.9,3775.7,6.7634]
[1753880430022,0.52963,3776.3,3775.8,2.50690476]
[1753880430319,3.2078,3776.5,3776.4,0.9165]
[1753880430525,3.2078,3776.5,3776.4,6.2337]
[1753880430818,0.7473,3777.0,3776.9,2.06503]
[1753880430819,0.6129,3777.0,3776.9,2.06503]
[1753880431023,0.52952,3777.1,3777.0,6.2337]
[1753880431219,3.2078,3777.3,3777.0,6.2337]
[1753880431430,0.6129,3777.6,3777.5,3.10175]
[1753880431625,0.2,3777.9,3777.8,0.8565]
[1753880431825,0.2,3777.9,3777.8,6.2337]
[1753880434325,0.7294,3777.9,3777.8,6.2337]
[1753880434724,0.2,3777.9,3777.8,6.2337]
[1753880437127,0.2,3777.9,3777.8,6.76311]
[1753880439340,4.35004,3778.4,3778.3,6.2337]
[1753880439725,5.23724,3778.4,3778.3,6.2337]
[1753880439928,8.75794,3778.4,3778.3,6.2337]
[1753880441137,8.75794,3778.4,3777.9,0.8565]
[1753880441340,5.55016,3778.2,3778.1,6.2337]
[1753880441839,5.55016,3778.2,3778.1,3.4417]
[1753880442137,5.55016,3778.2,3778.1,4.9172]
[1753880442640,5.55016,3778.2,3778.1,6.2337]
[1753880443335,5.55016,3778.2,3778.1,4.9172]
[1753880443640,5.5502,3777.9,3777.8,6.2337]
[1753880444733,5.5502,3777.9,3777.8,4.0607]
[1753880444939,3.95344,3777.6,3777.5,9.4415]
[1753880445334,5.55024,3777.6,3777.5,4.9172]
[1753880445531,3.80251,3777.1,3777.0,5.1611]
[1753880445738,5.55031,3777.1,3777.0,2.5723]
[1753880446031,5.55031,3777.1,3777.0,2.392]
[1753880446241,2.16807,3776.7,3776.6,6.76328]
[1753880446436,1.14247,3776.7,3776.6,6.76328]
[1753880446833,2.04077,3776.7,3776.6,6.76328]
[1753880447138,2.04077,3776.7,3776.6,6.2337]
[1753880447334,5.55037,3776.7,3776.5,3.2078]
[1753880447633,0.52957,3776.7,3776.6,6.2337]
[1753880448236,6.263,3777.2,3777.1,3.4288]
[1753880448436,3.9535,3777.2,3777.1,6.2337]
[1753880448741,0.5295,3777.2,3777.1,6.2337]
[1753880448942,8.01074,3777.6,3777.5,6.2337]
[1753880449136,8.75804,3777.6,3777.5,6.2337]
[1753880451144,3.05523,3777.0,3776.9,8.125]
[1753880451347,3.424,3777.0,3776.9,9.97104]
[1753880452044,3.424,3777.0,3776.9,9.4415]
[1753880453142,3.424,3777.0,3776.9,6.2337]
[1753880453742,2.3984,3777.0,3776.9,6.2337]
[1753880454038,1.5001,3777.0,3776.9,6.2337]
[1753880454237,3.424,3777.0,3776.9,6.2337]
[1753880454440,3.424,3777.0,3776.6,4.59028]
[1753880454441,0.6129,3776.7,3776.6,4.59028]
[1753880454749,2.16813,3776.3,3776.2,6.76333]
[1753880455045,4.70093,3776.3,3776.2,6.76333]
[1753880455545,0.52959,3776.6,3776.5,6.7633]
[1753880455747,0.52959,3776.6,3776.5,6.2337]
[1753880455939,0.52958,3776.7,3776.6,3.10188]
[1753880456135,0.52958,3776.7,3776.6,6.2337]
[1753880456446,0.52958,3776.7,3776.6,6.76328]
[1753880456647,0.52958,3776.7,3776.6,6.2337]
[1753880456845,1.14248,3776.7,3776.6,6.2337]
[1753880457645,2.5208,3777.5,3776.5,4.5318]
[1753880457942,3.85607,3777.4,3777.3,6.2094]
[1753880458245,5.47487,3777.4,3777.3,6.2094]
[1753880458836,0.52953,3777.0,3776.9,9.4172]
[1753880459040,5.47493,3777.0,3776.9,6.2094]
[1753880460134,5.47493,3777.0,3776.5,3.2078]
[1753880460135,5.47498,3776.6,3776.3,1.35]
[1753880460346,5.47508,3775.9,3775.8,0.19598236]
[1753880460740,4.9454,3775.9,3775.8,5.05538236]
[1753880460941,42.23166,3776.1,3776.0,6.2094]
[1753880461141,42.98316,3776.1,3776.0,4.8594]
[1753880461340,43.85046,3776.1,3776.0,4.8594]
[1753880461535,40.8,3776.1,3776.0,6.2094]
[1753880461743,0.52965,3776.2,3776.1,3.00235]
[1753880462046,0.52965,3776.2,3776.1,6.73905]
[1753880462245,41.32965,3776.2,3776.1,6.73905]
[1753880462446,40.8,3776.2,3776.1,6.73905]
[1753880462647,3.2078,3776.6,3776.5,5.327]
[1753880462947,23.2254,3777.0,3776.9,0.9591]
[1753880463147,3.85617,3776.7,3776.6,6.2094]
[1753880463643,0.5618,3776.7,3776.6,6.2094]
[1753880464950,4.9454,3776.7,3776.6,6.2094]
[1753880465853,0.5618,3776.9,3776.8,1.5369]
[1753880466046,4.72344,3777.0,3776.9,2.4727]
[1753880466248,5.47494,3777.0,3776.9,2.4727]
[1753880466450,5.47494,3777.0,3776.9,6.2094]
[1753880466758,3.2078,3777.1,3777.0,1.10733]
[1753880467043,0.5618,3777.5,3777.4,5.77977]
[1753880467245,7.2512,3778.0,3777.9,3.977]
[1753880467449,8.68259,3778.0,3777.9,6.2094]
[1753880467645,8.68259,3778.0,3777.9,4.8594]
[1753880467847,8.68259,3778.0,3777.9,3.977]
[1753880468045,0.52943,3777.7,3777.6,6.73884]
[1753880468246,0.52947,3777.4,3777.2,0.8824]
[1753880468547,3.8561,3777.2,3777.1,0.8824]
[1753880468746,5.4749,3777.2,3777.1,3.9236]
[1753880468946,5.4749,3777.2,3777.1,6.2094]
[1753880469545,3.8561,3777.2,3777.1,6.2094]
[1753880469746,0.5295,3777.2,3777.1,6.2094]
[1753880470449,0.52946,3777.5,3777.4,6.2094]
[1753880473051,0.52945,3777.6,3777.5,6.73886]
[1753880473254,0.5294,3778.0,3777.9,6.2094]
[1753880473646,0.5618,3778.1,3778.0,1.46519]
[1753880473956,41.32933,3778.4,3778.3,6.2094]
[1753880474153,1.09113,3778.4,3778.3,6.2094]
[1753880474757,0.5618,3778.4,3778.3,6.2094]
[1753880474952,0.52933,3778.5,3778.3,3.00203]
[1753880475259,1.99313,3778.5,3778.4,6.2094]
[1753880475654,2.99693,3778.5,3778.4,6.2094]
[1753880475956,5.47476,3778.2,3778.1,3.9003]
[1753880476151,5.47476,3778.2,3778.1,6.2094]
[1753880476347,5.47476,3778.2,3778.1,4.8594]
[1753880476653,5.47476,3778.2,3778.1,0.9591]
[1753880476851,5.47476,3778.2,3778.1,6.2094]
[1753880477862,0.52936,3778.2,3778.1,4.6958]
[1753880478158,0.52935,3778.3,3778.2,6.2094]
[1753880478851,1.09114,3778.4,3778.3,6.2094]
[1753880479253,0.5618,3778.4,3778.3,6.2094]
[1753880479956,0.52932,3778.5,3778.4,6.2094]
[1753880480559,1.09112,3778.5,3778.4,6.2094]
[1753880481063,3.85592,3778.5,3778.4,6.2094]
[1753880481665,4.60742,3778.5,3778.4,6.2094]
[1753880481961,3.85592,3778.5,3778.4,6.2094]
[1753880482865,0.5618,3778.5,3778.4,6.2094]
[1753880483161,0.52931,3778.6,3778.5,6.73872]
[1753880483562,0.902,3778.8,3778.6,3.00199]
[1753880483861,0.902,3778.8,3778.7,6.2094]
[1753880483862,0.52929,3778.8,3778.7,6.2094]
[1753880484165,1.09109,3778.8,3778.7,6.2094]
[1753880485062,0.5618,3778.8,3778.7,6.2094]
[1753880486256,0.52927,3778.9,3778.7,6.2094]
[1753880486257,0.52927,3778.9,3778.7,4.35198]
[1753880486563,1.09105,3779.0,3778.9,6.2094]
[1753880486964,5.47465,3779.0,3778.9,6.2094]
[1753880490367,5.47465,3779.0,3778.9,4.8594]
[1753880490566,5.47465,3779.0,3778.9,6.1489]
[1753880492170,20.7494,3779.3,3779.2,2.5093]
[1753880492370,22.4096,3779.3,3779.2,6.1215]
[1753880492768,23.3114,3779.3,3779.2,6.1215]
[1753880493071,21.15451,3779.3,3779.2,6.1215]
[1753880493271,20.6253,3779.3,3779.2,6.1215]
[1753880493771,18.267,3779.3,3779.2,6.1215]
[1753880493972,18.267,3779.3,3778.5,1.50438275]
[1753880493973,4.30684,3779.8,3779.7,3.3516]
[1753880494166,4.4295,3779.8,3779.7,6.1215]
[1753880494377,0.52921,3779.3,3779.1,5.2920553]
[1753880494669,2.4824,3778.8,3778.7,4.6411]
[1753880494868,3.01172,3778.5,3778.4,1.15232]
[1753880495065,4.66472,3778.5,3778.4,4.6411]
[1753880495369,4.66472,3778.5,3778.2,3.2078]
[1753880495370,3.01175,3778.3,3778.2,3.9897]
[1753880495576,5.57375,3778.3,3778.2,3.9897]
[1753880495870,1.0992,3778.7,3778.6,6.1215]
[1753880496070,1.4717,3778.9,3778.8,2.5093]
[1753880496369,5.57367,3778.9,3778.8,6.1215]
[1753880496770,5.57367,3778.9,3778.8,6.65078]
[1753880496970,5.57367,3778.9,3778.8,6.1215]
[1753880497971,4.66467,3778.9,3778.8,6.1215]